Workbook

Sheet voorblad
A5: Kenmerk | B5: Eenheid | C5: FW stier | D5: Huidig bedrijfsniveau | E5: Bedrijfsspecifieke fokwaarde | F5: Verwacht bedrijfsniveau
A6: melk | B6: kg | C6: 679 | D6: =achtergrond!D3 -> 8183 | E6: =achtergrond!E3 -> 0 | F6: =D6+((C6-E6)/2) -> 8522.5
A7: vet | B7: % | C7: 0.14 | D7: =achtergrond!D4 -> 4.47 | E7: =achtergrond!E4 -> 0 | F7: 4.54
B8: kg | C8: 42 | D8: =achtergrond!D5 -> 366 | E8: =achtergrond!E5 -> 0 | F8: 387
A9: eiwit | B9: % | C9: 0.12 | D9: =achtergrond!D6 -> 3.58 | E9: =achtergrond!E6 -> 0 | F9: 3.64
B10: kg | C10: 35 | D10: =achtergrond!D7 -> 293 | E10: =achtergrond!E7 -> 0 | F10: 310.5
A11: lactose | B11: % | C11: -0.06 | D11: =achtergrond!D8 -> 4.51 | E11: =achtergrond!E8 -> 0 | F11: 4.48
B12: kg | C12: 25 | D12: =achtergrond!D9 -> 369.0533 | E12: =achtergrond!E9 -> 0 | F12: 381.5533
A13: Inet | B13: euro melkgeld | C13: 239 | D13: =achtergrond!D10 -> 2080.61599 | E13: =achtergrond!E10 -> 0 | F13: 2200.11599
A14: levensduur | B14: dagen | C14: 500 | D14: =achtergrond!D11 -> 2054 | E14: =achtergrond!E11 -> 0 | F14: =D14+((C14-E14)/2) -> 2304
B15: jaar.maand | D15: =achtergrond!D12 -> 5.07 | E15: =achtergrond!E12 -> 0 | F15: =INT(F14/365.25)+ROUND((MOD(F14,365.26)/30.4375)/100,2) -> 6.04
A16: subklinische mastitis | B16: % | C16: 98 | D16: =achtergrond!D13 -> 38 | E16: =achtergrond!E13 -> 100 | F16: =D16+((C16-E16)*achtergrond!F13) -> 39.52446712
A17: klinische mastitis | B17: % | C17: 101 | D17: =achtergrond!D14 -> 12.1 | E17: =achtergrond!E14 -> 100 | F17: =D17+((C17-E17)*achtergrond!F14) -> 11.66339377
A18: celgetal | B18: cellen x 1.000 | C18: 98 | D18: =achtergrond!D15 -> 179 | E18: =achtergrond!E15 -> 100 | F18: =D18+((C18-E18)*achtergrond!F15) -> 184
A19: interval afkalven-eerste inseminatie | B19: dagen | C19: 102 | D19: =achtergrond!D16 -> 85 | E19: =achtergrond!E16 -> 100 | F19: =D19+((C19-E19)*achtergrond!F16) -> 82.69684998
A20: interval eerste-laatste inseminatie | B20: dagen | C20: 102 | D20: =achtergrond!D17 -> 47 | E20: =achtergrond!E17 -> 100 | F20: =D20+((C20-E20)*achtergrond!F17) -> 44.22727571
A21: non-return 56 dagen | B21: % | C21: 106 | D21: =achtergrond!D18 -> 60 | E21: =achtergrond!E18 -> 100 | F21: =D21+((C21-E21)*achtergrond!F18) -> 64.29325052
A22: tussenkalftijd | B22: dagen | C22: 104 | D22: =achtergrond!D19 -> 401 | E22: =achtergrond!E19 -> 100 | F22: =D22+((C22-E22)*achtergrond!F19) -> 394.3365174
A23: drachtpercentage koe | B23: % | C23: 107 | D23: =achtergrond!D20 -> 59 | E23: =achtergrond!E20 -> 100 | F23: =D23+((C23-E23)*achtergrond!F20) -> 62.91311896
A24: drachtpercentage pink | B24: % | C24: 102 | D24: =achtergrond!D21 -> 74 | E24: =achtergrond!E21 -> 100 | F24: =D24+((C24-E24)*achtergrond!F21) -> 74.91678787
A25: geboortegemak | B25: % makkelijke en normale geboortes | C25: 103 | D25: =achtergrond!D22 -> 95 | E25: =achtergrond!E22 -> 100 | F25: =D25+((C25-E25)*achtergrond!F22) -> 96.11552985
A26: levensvatbaarheid | B26: % levende kalveren | C26: 105 | D26: =achtergrond!D23 -> 92.6 | E26: =achtergrond!E23 -> 100 | F26: =D26+((C26-E26)*achtergrond!F23) -> 96.78214209
A27: klauwgezondheid | B27: % dieren met een klauwaandoening | C27: 102 | D27: =achtergrond!D24 -> 58 | E27: =achtergrond!E24 -> 100 | F27: =D27+((C27-E27)*achtergrond!F24) -> 56.6
A28: kalvervitaliteit | B28: % overleving | C28: 104 | D28: =achtergrond!D25 -> 90 | E28: =achtergrond!E25 -> 100 | F28: =D28+((C28-E28)*achtergrond!F25) -> 91.11356185
A29: frame | B29: punten | C29: 101 | D29: =achtergrond!D26 -> 80.7 | E29: =achtergrond!E26 -> 100 | F29: =D29+((C29-E29)*achtergrond!F26) -> 80.8925
A30: type | B30: punten | C30: 102 | D30: =achtergrond!D27 -> 80.8 | E30: =achtergrond!E27 -> 100 | F30: =D30+((C30-E30)*achtergrond!F27) -> 80.945
A31: uier | B31: punten | C31: 98 | D31: =achtergrond!D28 -> 80.3 | E31: =achtergrond!E28 -> 100 | F31: =D31+((C31-E31)*achtergrond!F28) -> 79.975
A32: beenwerk | B32: punten | C32: 114 | D32: =achtergrond!D29 -> 80.3 | E32: =achtergrond!E29 -> 100 | F32: =D32+((C32-E32)*achtergrond!F29) -> 81.735
A33: algemeen voorkomen | B33: punten | C33: 107 | D33: =achtergrond!D30 -> 80.4 | E33: =achtergrond!E30 -> 100 | F33: =D33+((C33-E33)*achtergrond!F30) -> 80.9425
A34: hoogtemaat | B34: cm | C34: 96 | D34: =achtergrond!D31 -> 146.6 | E34: =achtergrond!E31 -> 100 | F34: =D34+((C34-E34)*achtergrond!F31) -> 145.5

Sheet achtergrond (hidden)
C1: Nederlands gemiddelde
A2: Kenmerk | B2: Eenheid | C2: Zwartbont | D2: Roodbont | E2: Bedrijfsspecifieke fokwaarde | F2: 1 punt rel. fokwaarde
A3: melk | B3: kg | C3: 8953 | D3: 8183 | E3: 0 | G3: Jaarstatistieken 2017 tabel 24
A4: vet | B4: % | C4: 4.28 | D4: 4.47 | E4: 0
B5: kg | C5: 383 | D5: 366 | E5: 0
A6: eiwit | B6: % | C6: 3.48 | D6: 3.58 | E6: 0
B7: kg | C7: 312 | D7: 293 | E7: 0
A8: lactose | B8: % | C8: 4.51 | D8: 4.51 | E8: 0 | G8: Gemiddelde lactose gehalte uit Benchmark Lely 2016-2017
B9: kg | C9: =C3*(C8/100) -> 403.7803 | D9: =D3*(D8/100) -> 369.0533 | E9: 0
A10: Inet | B10: euro melkgeld | C10: =0.3*C9+2.1*C5+4.1*C7 -> 2204.63409 | D10: =0.3*D9+2.1*D5+4.1*D7 -> 2080.61599 | E10: 0
A11: levensduur | B11: dagen | C11: 2076 | D11: 2054 | E11: 0 | G11: Jaarstatistieken 2017 tabel 1
B12: jaar.maand | C12: =INT(C11/365.25)+ROUND((MOD(C11,365.26)/30.4375)/100,2) -> 5.08 | D12: =INT(D11/365.25)+ROUND((MOD(D11,365.26)/30.4375)/100,2) -> 5.07 | G12: Levensduur afgevoerde koeien. Kijk bv in de duurzaamheidsmonitor of jaaroverzicht
A13: subklinische mastitis | B13: % | C13: 38 | D13: 38 | E13: 100 | F13: =Tabel_rel!G6/4 -> -0.76223356
A14: klinische mastitis | B14: % | C14: 12.1 | D14: 12.1 | E14: 100 | F14: =Tabel_rel!G5/4 -> -0.4366062299
A15: celgetal | B15: cellen x 1.000 | C15: 179 | D15: 179 | E15: 100 | F15: =Tabel_rel!G7/4 -> -2.5
A16: interval afkalven-eerste inseminatie | B16: dagen | C16: 85 | D16: 85 | E16: 100 | F16: =Tabel_rel!G11/4 -> -1.151575008
A17: interval eerste-laatste inseminatie | B17: dagen | C17: 47 | D17: 47 | E17: 100 | F17: =Tabel_rel!G10/4 -> -1.386362146
A18: non-return percentage op 56 dagen | B18: % | C18: 60 | D18: 60 | E18: 100 | F18: =Tabel_rel!G12/4 -> 0.7155417528
A19: tussenkalftijd | B19: dagen | C19: 401 | D19: 401 | E19: 100 | F19: =Tabel_rel!G9/4 -> -1.665870643
A20: drachtpercentage koe | B20: % | C20: 59 | D20: 59 | E20: 100 | F20: =Tabel_rel!G13/4 -> 0.5590169944
A21: drachtpercentage pink | B21: % | C21: 74 | D21: 74 | E21: 100 | F21: =Tabel_rel!G14/4 -> 0.4583939354
A22: geboortegemak | B22: % makkelijke en normale geboortes | C22: 95 | D22: 95 | E22: 100 | F22: =Tabel_rel!G17/4 -> 0.3718432827
A23: levensvatbaarheid | B23: % levende kalveren | C23: =95*0.7+87*0.3 -> 92.6 | D23: =95*0.7+87*0.3 -> 92.6 | E23: 100 | F23: =Tabel_rel!G29/4 -> 0.8364284189 | G23: Fokwaarde geboortegemak
A24: klauwgezondheid | B24: % dieren met een klauwaandoening | C24: 58 | D24: 58 | E24: 100 | F24: =Tabel_rel!G34/4 -> -0.7 | G24: Fokwaarde levensvatbaarheid bij geboorte
A25: kalvervitaliteit | B25: % overleving | C25: 90 | D25: 90 | E25: 100 | F25: =Tabel_rel!G42/4 -> 0.2783904632
A26: frame | B26: punten | C26: 81 | D26: 80.7 | E26: 100 | F26: =Tabel_rel!G82/4 -> 0.1925
A27: type | B27: punten | C27: 81 | D27: 80.8 | E27: 100 | F27: =Tabel_rel!G83/4 -> 0.0725
A28: uier | B28: punten | C28: 80.7 | D28: 80.3 | E28: 100 | F28: =Tabel_rel!G84/4 -> 0.1625
A29: beenwerk | B29: punten | C29: 80.2 | D29: 80.3 | E29: 100 | F29: =Tabel_rel!G85/4 -> 0.1025
A30: algemeen voorkomen | B30: punten | C30: 80.6 | D30: 80.4 | E30: 100 | F30: =Tabel_rel!G87/4 -> 0.0775
A31: hoogtemaat | B31: cm | C31: 147.2 | D31: 146.6 | E31: 100 | F31: =Tabel_rel!G64/4 -> 0.275
A37: 1) de lijst met kenmerken kan aangevuld worden met alle kenmerken uit de conversie tabel
A38: 2) Geef de juiste eenheid op per kenmerk
A39: 3) De kolom FokWaarde stier is een kolom die ingevuld kan worden met de fokwaarde van elke willekeurige stier
A40: 4) De kolom huidig bedrijfdsniveau kan het huidige bedrijfsniveau ingevuld worden
A41: 5) In de kolom verwacht bedrijfsniveau komt de formule waarmee het verwachte bedrijfsniveau uitgerekend wordt: huidig + (1/2 * FW stier)
A42: 6) De kolom Nederlands gemiddelde (zwartbont & roodbont) moet aangevuld worden met het nederlandsgemiddelde, dit is terug te vinden in de E-hoofdstukken
A44: Alg. Vakken die ingevuld moeten worden door de gebruiker graag een kleurtje geven, vakken die niet ingevuld moeten worden door de gebruiker kunnen op het laatst vergrendeld worden
A46: Informatie is te vinden op de CRV website: publicaties -> naslagwerken -> E-hoofdstukken & publicaties -> omrekeningen

Sheet Tabel_rel (hidden)
C1: Fokwaarde
A2: Kenmerk | B2: Eenheid | C2: 88 | D2: 92 | E2: 96 | F2: 100 | G2: 104 | H2: 108 | I2: 112
A3: Uiergezondheid
A4: Uiergezondheid | B4: euro (minder kosten) | C4: =G4*-3 -> -15.8581941 | D4: =G4*-2 -> -10.5721294 | E4: =G4*-1 -> -5.286064699 | F4: 0 | G4: 5.286064699 | H4: =G4*2 -> 10.5721294 | I4: =G4*3 -> 15.8581941
A5: Klinische mastitis | B5: % | C5: =G5*-3 -> 5.239274759 | D5: =G5*-2 -> 3.492849839 | E5: =G5*-1 -> 1.74642492 | F5: 0 | G5: -1.74642492 | H5: =G5*2 -> -3.492849839 | I5: =G5*3 -> -5.239274759
A6: Subklinische mastitis | B6: % | C6: =G6*-3 -> 9.14680272 | D6: =G6*-2 -> 6.09786848 | E6: =G6*-1 -> 3.04893424 | F6: 0 | G6: -3.04893424 | H6: =G6*2 -> -6.09786848 | I6: =G6*3 -> -9.14680272
A7: Celgetal | B7: cellen / ml (x 1000) | C7: =-1*I7 -> 30 | D7: =-1*H7 -> 20 | E7: =-1*G7 -> 10 | F7: 0 | G7: -10 | H7: =2*G7 -> -20 | I7: =3*G7 -> -30
A8: Vruchtbaarheid
A9: Tussenkalftijd | B9: dagen | C9: =G9*-3 -> 19.99044772 | D9: =G9*-2 -> 13.32696515 | E9: =G9*-1 -> 6.663482573 | F9: 0 | G9: -6.663482573 | H9: =G9*2 -> -13.32696515 | I9: =G9*3 -> -19.99044772
A10: Interval eerste-laatste inseminatie | B10: dagen | C10: 16.63634575 | D10: 11.09089717 | E10: 5.545448584 | F10: 0 | G10: -5.545448584 | H10: -11.09089717 | I10: -16.63634575
A11: Interval afkalven-eerste inseminatie | B11: dagen | C11: 13.8189001 | D11: 9.212600067 | E11: 4.606300034 | F11: 0 | G11: -4.606300034 | H11: -9.212600067 | I11: -13.8189001
A12: Non-return | B12: % | C12: =G12*-3 -> -8.586501034 | D12: =G12*-2 -> -5.724334022 | E12: =G12*-1 -> -2.862167011 | F12: 0 | G12: 2.862167011 | H12: =G12*2 -> 5.724334022 | I12: =G12*3 -> 8.586501034
A13: Drachtpercentage koe | B13: % | C13: -6.708203932 | D13: -4.472135955 | E13: -2.236067977 | F13: 0 | G13: 2.236067977 | H13: 4.472135955 | I13: 6.708203932
A14: Drachtpercentage pink | B14: % | C14: -5.500727225 | D14: -3.667151483 | E14: -1.833575742 | F14: 0 | G14: 1.833575742 | H14: 3.667151483 | I14: 5.500727225
A15: Leeftijd bij eerste inseminatie | B15: dagen | C15: 10.59896221 | D15: 7.065974809 | E15: 3.532987404 | F15: 0 | G15: -3.532987404 | H15: -7.065974809 | I15: -10.59896221
A16: Geboortekenmerken en levensvatbaarheid
A17: Geboortegemak vaars | B17: % makkelijke & normale geboorten | C17: =G17*-3 -> -4.462119393 | D17: =G17*-2 -> -2.974746262 | E17: =G17*-1 -> -1.487373131 | F17: 0 | G17: =1.48737313089334 -> 1.487373131 | H17: =G17*2 -> 2.974746262 | I17: =G17*3 -> 4.462119393
A18: Geboortegemak koe | B18: % makkelijke & normale geboorten | C18: =G18*-3 -> -2.316157112 | D18: =G18*-2 -> -1.544104741 | E18: =G18*-1 -> -0.7720523706 | F18: 0 | G18: =0.772052370623774 -> 0.7720523706 | H18: =G18*2 -> 1.544104741 | I18: =G18*3 -> 2.316157112
A19: Draagtijd vaars (direct) | B19: dagen | C19: -3.904612657 | D19: -2.603075105 | E19: -1.301537552 | F19: 0 | G19: 1.301537552 | H19: 2.603075105 | I19: 3.904612657
A20: Draagtijd koe (direct) | B20: dagen | C20: -4.284857057 | D20: -2.856571371 | E20: -1.428285686 | F20: 0 | G20: 1.428285686 | H20: 2.856571371 | I20: 4.284857057
A21: Geboortegewicht vaars (direct) | B21: kg | C21: -1.293831519 | D21: -0.8625543461 | E21: -0.4312771731 | F21: 0 | G21: 0.4312771731 | H21: 0.8625543461 | I21: 1.293831519
A22: Geboortegewicht koe (direct) | B22: kg | C22: -1.6486358 | D22: -1.099090533 | E22: -0.5495452666 | F22: 0 | G22: 0.5495452666 | H22: 1.099090533 | I22: 1.6486358
A23: Afkalfgemak vaars | B23: % makkelijke & normale geboorten | C23: -3.843619016 | D23: -2.562412678 | E23: -1.281206339 | F23: 0 | G23: 1.281206339 | H23: 2.562412678 | I23: 3.843619016
A24: Afkalfgemak koe | B24: % makkelijke & normale geboorten | C24: -1.508530656 | D24: -1.005687104 | E24: -0.5028435519 | F24: 0 | G24: 0.5028435519 | H24: 1.005687104 | I24: 1.508530656
A25: Draagtijd vaars (maternaal) | B25: dagen | C25: -1.438749457 | D25: -0.9591663047 | E25: -0.4795831523 | F25: 0 | G25: 0.4795831523 | H25: 0.9591663047 | I25: 1.438749457
A26: Draagtijd koe (maternaal) | B26: dagen | C26: -1.643167673 | D26: -1.095445115 | E26: -0.5477225575 | F26: 0 | G26: 0.5477225575 | H26: 1.095445115 | I26: 1.643167673
A27: Geboortegewicht vaars (maternaal) | B27: kg | C27: -0.6708203932 | D27: -0.4472135955 | E27: -0.2236067977 | F27: 0 | G27: 0.2236067977 | H27: 0.4472135955 | I27: 0.6708203932
A28: Geboortegewicht koe (maternaal) | B28: kg | C28: -0.8485281374 | D28: -0.5656854249 | E28: -0.2828427125 | F28: 0 | G28: 0.2828427125 | H28: 0.5656854249 | I28: 0.8485281374
A29: Levensvatbaarheid geboorte uit vaars | B29: % levende kalveren | C29: =G29*-3 -> -10.03714103 | D29: =G29*-2 -> -6.691427351 | E29: =G29*-1 -> -3.345713676 | F29: 0 | G29: 3.345713676 | H29: 6.691427351 | I29: =G29*3 -> 10.03714103
A30: Levensvatbaarheid geboorte uit koe | B30: % levende kalveren | C30: =G30*-3 -> -2.18654522 | D30: =G30*-2 -> -1.457696813 | E30: =G30*-1 -> -0.7288484067 | F30: 0 | G30: 0.7288484067 | H30: 1.457696813 | I30: =G30*3 -> 2.18654522
A31: Levensvatbaarheid bij afkalven als vaars | B31: % levende kalveren | C31: =G31*-3 -> -14.26625389 | D31: =G31*-2 -> -9.510835925 | E31: =G31*-1 -> -4.755417963 | F31: 0 | G31: 4.755417963 | H31: 9.510835925 | I31: =G31*3 -> 14.26625389
A32: Levensvatbaarheid bij afkalven als koe | B32: % levende kalveren | C32: =G32*-3 -> -2.044803169 | D32: =G32*-2 -> -1.363202113 | E32: =G32*-1 -> -0.6816010563 | F32: 0 | G32: 0.6816010563 | H32: 1.363202113 | I32: =G32*3 -> 2.044803169
A33: Klauwgezondheid
A34: Klauwgezondheid | B34: % aandoening | C34: =G34*-3 -> 8.4 | D34: =G34*-2 -> 5.6 | E34: =G34*-1 -> 2.8 | F34: 0 | G34: -2.8 | H34: -5.6 | I34: =G34*3 -> -8.4
A35: Zoolbloeding | B35: % aandoening | C35: =G35*-3 -> 8.633764376 | D35: =G35*-2 -> 5.755842917 | E35: =G35*-1 -> 2.877921459 | F35: 0 | G35: -2.877921459 | H35: -5.755842917 | I35: =G35*3 -> -8.633764376
A36: Mortellaro | B36: % aandoening | C36: 7.659460675 | D36: 5.106307117 | E36: 2.553153558 | F36: 0 | G36: -2.553153558 | H36: -5.106307117 | I36: -7.659460675
A37: Stinkpoot | B37: % aandoening | C37: 9.468893049 | D37: 6.312595366 | E37: 3.156297683 | F37: 0 | G37: -3.156297683 | H37: -6.312595366 | I37: -9.468893049
A38: Zoolzweer | B38: % aandoening | C38: 2.791720197 | D38: 1.861146798 | E38: 0.9305733989 | F38: 0 | G38: -0.9305733989 | H38: -1.861146798 | I38: -2.791720197
A39: Tyloom | B39: % aandoening | C39: 1.92617743 | D39: 1.284118287 | E39: 0.6420591433 | F39: 0 | G39: -0.6420591433 | H39: -1.284118287 | I39: -1.92617743
A40: Wittelijndefect | B40: % aandoening | C40: 2.077176825 | D40: 1.38478455 | E40: 0.6923922752 | F40: 0 | G40: -0.6923922752 | H40: -1.38478455 | I40: -2.077176825
A41: Kalvervitaliteit
A42: Kalvervitaliteit (dag 3-365) | B42: % overleving | C42: =G42*-3 -> -3.340685558 | D42: =G42*-2 -> -2.227123706 | E42: =G42*-1 -> -1.113561853 | F42: 0 | G42: 1.113561853 | H42: 2.227123706 | I42: =G42*3 -> 3.340685558
A43: Kalvervitaliteit NUKA's (dag 3-14) | B43: % overleving | C43: =G43*-3 -> -1.609968944 | D43: =G43*-2 -> -1.073312629 | E43: =G43*-1 -> -0.5366563146 | F43: 0 | G43: 0.5366563146 | H43: 1.073312629 | I43: =G43*3 -> 1.609968944
A44: Kalvervitaliteit Mestkalveren (dag 15-180) | B44: % overleving | C44: =G44*-3 -> -1.502637681 | D44: =G44*-2 -> -1.001758454 | E44: =G44*-1 -> -0.500879227 | F44: 0 | G44: 0.500879227 | H44: 1.001758454 | I44: =G44*3 -> 1.502637681
A45: Melkbaarheid en AMS
A46: Melksnelheid | B46: punten | C46: =G46*-3 -> -0.9367496998 | D46: =G46*-2 -> -0.6244997998 | E46: =G46*-1 -> -0.3122498999 | F46: 0 | G46: 0.3122498999 | H46: =G46*2 -> 0.6244997998 | I46: =G46*3 -> 0.9367496998
A47: Karakter | B47: punten | C47: =G47*-3 -> -0.6344131146 | D47: =G47*-2 -> -0.4229420764 | E47: =G47*-1 -> -0.2114710382 | F47: 0 | G47: 0.2114710382 | H47: =G47*2 -> 0.4229420764 | I47: =G47*3 -> 0.6344131146
A48: Melkrobot efficiëntie | B48: kg/minuut | C48: =G48*-3 -> -0.26849581 | D48: =G48*-2 -> -0.1789972067 | E48: =G48*-1 -> -0.08949860334 | F48: 0 | G48: 0.08949860334 | H48: =G48*2 -> 0.1789972067 | I48: =G48*3 -> 0.26849581
A49: Melkrobot interval | B49: minuten | C49: =G49*-3 -> -47.98124634 | D49: =G49*-2 -> -31.98749756 | E49: =G49*-1 -> -15.99374878 | F49: 0 | G49: 15.99374878 | H49: =G49*2 -> 31.98749756 | I49: =G49*3 -> 47.98124634
A50: Melkrobot gewenning | B50: minuten verschil interval kort na kalven en later | C50: =G50*-3 -> -27.26536264 | D50: =G50*-2 -> -18.17690843 | E50: =G50*-1 -> -9.088454214 | F50: 0 | G50: 9.088454214 | H50: =G50*2 -> 18.17690843 | I50: =G50*3 -> 27.26536264
A51: Lichaamsgewicht en bevleesheid
A52: Lichaamsgewicht | B52: kg | C52: =G52*-3 -> -36 | D52: =-1*H52 -> -24 | E52: =-1*G52 -> -12 | F52: 0 | G52: 12 | H52: =2*G52 -> 24 | I52: =3*G52 -> 36
A53: Bevleesdheid koe | B53: punten | C53: -0.709929574 | D53: =G53*-2 -> -0.4732863826 | E53: =G53*-1 -> -0.2366431913 | F53: 0 | G53: 0.2366431913 | H53: =G53*2 -> 0.4732863826 | I53: =G53*3 -> 0.709929574
A54: Vetbedekking koe | B54: punten | C54: -1.475804865 | D54: =G54*-2 -> -0.9838699101 | E54: =G54*-1 -> -0.491934955 | F54: 0 | G54: 0.491934955 | H54: 0.9838699101 | I54: =G54*3 -> 1.475804865
A55: Karkasgewicht koe | B55: kg | C55: -23.75878785 | D55: -15.8391919 | E55: -7.919595949 | F55: 0 | G55: 7.919595949 | H55: 15.8391919 | I55: 23.75878785
A56: Bevleesdheid kalf | B56: punten | C56: -0.7224956747 | D56: -0.4816637832 | E56: -0.2408318916 | F56: 0 | G56: 0.2408318916 | H56: 0.4816637832 | I56: 0.7224956747
A57: Vetbedekking kalf | B57: punten | C57: -1.047854952 | D57: -0.6985699679 | E57: -0.3492849839 | F57: 0 | G57: 0.3492849839 | H57: 0.6985699679 | I57: 1.047854952
A58: Groei kalf | B58: kg | C58: -9.492523374 | D58: -6.328348916 | E58: -3.164174458 | F58: 0 | G58: 3.164174458 | H58: 6.328348916 | I58: 9.492523374
A59: Vleeskleur kalf | B59: punten | C59: -0.6841052551 | D59: -0.45607017 | E59: -0.228035085 | F59: 0 | G59: 0.228035085 | H59: 0.45607017 | I59: 0.6841052551
A60: Bevleesdheid vleesstier | B60: punten | C60: -0.6841052551 | D60: -0.45607017 | E60: -0.228035085 | F60: 0 | G60: 0.228035085 | H60: 0.45607017 | I60: 0.6841052551
A61: Vetbedekking vleesstier | B61: punten | C61: -0.8485281374 | D61: -0.5656854249 | E61: -0.2828427125 | F61: 0 | G61: 0.2828427125 | H61: 0.5656854249 | I61: 0.8485281374
A62: Groei vleesstier | B62: kg | C62: -16.92276573 | D62: -11.28184382 | E62: -5.64092191 | F62: 0 | G62: 5.64092191 | H62: 11.28184382 | I62: 16.92276573
A63: Exterieur
A64: Hoogtemaat | B64: cm | C64: =-1*I64 -> -3.3 | D64: =-1*H64 -> -2.2 | E64: =-1*G64 -> -1.1 | F64: 0 | G64: 1.1 | H64: =2*G64 -> 2.2 | I64: =3*G64 -> 3.3
A65: Voorhand | B65: punten | C65: =-1*I65 -> -0.93 | D65: =-1*H65 -> -0.62 | E65: =-1*G65 -> -0.31 | F65: 0 | G65: 0.31 | H65: =2*G65 -> 0.62 | I65: =3*G65 -> 0.93
A66: Inhoud | B66: punten | C66: -0.96 | D66: -0.64 | E66: -0.32 | F66: 0 | G66: 0.32 | H66: 0.64 | I66: 0.96
A67: Openheid | B67: punten | C67: -1.02 | D67: -0.68 | E67: -0.34 | F67: 0 | G67: 0.34 | H67: 0.68 | I67: 1.02
A68: Conditie | B68: punten | C68: -1.05 | D68: -0.7 | E68: -0.35 | F68: 0 | G68: 0.35 | H68: 0.7 | I68: 1.05
A69: Kruisligging | B69: punten | C69: -1.17 | D69: -0.78 | E69: -0.39 | F69: 0 | G69: 0.39 | H69: 0.78 | I69: 1.17
A70: Kruisbreedte | B70: punten | C70: -1.14 | D70: -0.76 | E70: -0.38 | F70: 0 | G70: 0.38 | H70: 0.76 | I70: 1.14
A71: Beenstand achter | B71: punten | C71: -0.78 | D71: -0.52 | E71: -0.26 | F71: 0 | G71: 0.26 | H71: 0.52 | I71: 0.78
A72: Beenstand zij | B72: punten | C72: -0.9 | D72: -0.6 | E72: -0.3 | F72: 0 | G72: 0.3 | H72: 0.6 | I72: 0.9
A73: Klauwhoek | B73: punten | C73: -0.78 | D73: -0.52 | E73: -0.26 | F73: 0 | G73: 0.26 | H73: 0.52 | I73: 0.78
A74: Beengebruik | B74: punten | C74: -0.69 | D74: -0.46 | E74: -0.23 | F74: 0 | G74: 0.23 | H74: 0.46 | I74: 0.69
A75: Vooruieraanhechting | B75: punten | C75: -1.11 | D75: -0.74 | E75: -0.37 | F75: 0 | G75: 0.37 | H75: 0.74 | I75: 1.11
A76: Voorspeenplaatsing | B76: punten | C76: -1.41 | D76: -0.94 | E76: -0.47 | F76: 0 | G76: 0.47 | H76: 0.94 | I76: 1.41
A77: Speenlengte | B77: punten | C77: -1.26 | D77: -0.84 | E77: -0.42 | F77: 0 | G77: 0.42 | H77: 0.84 | I77: 1.26
A78: Uierdiepte | B78: punten | C78: -0.96 | D78: -0.64 | E78: -0.32 | F78: 0 | G78: 0.32 | H78: 0.64 | I78: 0.96
A79: Achteruierhoogte | B79: punten | C79: -0.9 | D79: -0.6 | E79: -0.3 | F79: 0 | G79: 0.3 | H79: 0.6 | I79: 0.9
A80: Ophangband | B80: punten | C80: -0.99 | D80: -0.66 | E80: -0.33 | F80: 0 | G80: 0.33 | H80: 0.66 | I80: 0.99
A81: Achterspeenplaatsing | B81: punten | C81: -1.26 | D81: -0.84 | E81: -0.42 | F81: 0 | G81: 0.42 | H81: 0.84 | I81: 1.26
A82: Frame | B82: punten | C82: -2.31 | D82: -1.54 | E82: -0.77 | F82: 0 | G82: 0.77 | H82: 1.54 | I82: 2.31
A83: Type | B83: punten | C83: -0.87 | D83: -0.58 | E83: -0.29 | F83: 0 | G83: 0.29 | H83: 0.58 | I83: 0.87
A84: Uier | B84: punten | C84: -1.95 | D84: -1.3 | E84: -0.65 | F84: 0 | G84: 0.65 | H84: 1.3 | I84: 1.95
A85: Beenwerk | B85: punten | C85: -1.23 | D85: -0.82 | E85: -0.41 | F85: 0 | G85: 0.41 | H85: 0.82 | I85: 1.23
A86: Bespiering | B86: punten | C86: -2.28 | D86: -1.52 | E86: -0.76 | F86: 0 | G86: 0.76 | H86: 1.52 | I86: 2.28
A87: Algemeen voorkomen | B87: punten | C87: -0.93 | D87: -0.62 | E87: -0.31 | F87: 0 | G87: 0.31 | H87: 0.62 | I87: 0.93
A90: Persistentie
A91: Laatrijpheid
